[Event "Early-Titled-Tuesday-Blitz-April-23-2024"]
[Site "Chess.com"]
[Date "2024.04.23"]
[Round "7"]
[White "Rodalquilar"]
[Black "czechbul17"]
[Result "1-0"]
[WhiteElo "2733"]
[BlackElo "2082"]
[TimeControl "180+1"]
[EndTime "9:20:32 PDT"]
[Termination "Rodalquilar won on time"]

1. d4 {[%clk 0:03:00.9]} 1... d6 {[%clk 0:02:58.2]} 2. e4 {[%clk 0:03:00.5]}
2... Nf6 {[%clk 0:02:57.9]} 3. Nc3 {[%clk 0:03:00.8]} 3... Nbd7 {[%clk
0:02:57.4]} 4. g4 {[%clk 0:03:00.1]} 4... h6 {[%clk 0:02:43.3]} 5. h3 {[%clk
0:03:00.2]} 5... e5 {[%clk 0:02:37.4]} 6. f4 {[%clk 0:02:58.1]} 6... exd4 {[%clk
0:02:29.2]} 7. Qxd4 {[%clk 0:02:57.9]} 7... c6 {[%clk 0:02:29.8]} 8. Nf3 {[%clk
0:02:55.7]} 8... d5 {[%clk 0:02:29.2]} 9. e5 {[%clk 0:02:46.4]} 9... Bc5 {[%clk
0:02:04.9]} 10. Qd3 {[%clk 0:02:46.4]} 10... Ng8 {[%clk 0:01:56.9]} 11. Be3
{[%clk 0:02:26.7]} 11... Qb6 {[%clk 0:01:53.6]} 12. Bxc5 {[%clk 0:02:26.6]}
12... Nxc5 {[%clk 0:01:52.6]} 13. Qd4 {[%clk 0:02:21.5]} 13... Qxb2 {[%clk
0:01:26.5]} 14. Rb1 {[%clk 0:02:21.4]} 14... Qa3 {[%clk 0:01:27]} 15. f5 {[%clk
0:02:04.6]} 15... Ne7 {[%clk 0:01:15.2]} 16. Bg2 {[%clk 0:01:59.5]} 16... Bxf5
{[%clk 0:01:00]} 17. gxf5 {[%clk 0:01:53.2]} 17... Nxf5 {[%clk 0:01:00.9]} 18.
Qb4 {[%clk 0:01:34]} 18... Qxb4 {[%clk 0:00:56.9]} 19. Rxb4 {[%clk 0:01:34.9]}
19... Ne3 {[%clk 0:00:57]} 20. Kf2 {[%clk 0:01:35.3]} 20... Nxc2 {[%clk
0:00:51.1]} 21. Rg4 {[%clk 0:01:34.2]} 21... Ne6 {[%clk 0:00:41.6]} 22. Rc1
{[%clk 0:01:28]} 22... Na3 {[%clk 0:00:33.5]} 23. Rb4 {[%clk 0:01:19.5]} 23...
b5 {[%clk 0:00:30.7]} 24. Nd2 {[%clk 0:01:14]} 24... Nc5 {[%clk 0:00:22.3]} 25.
Ke2 {[%clk 0:01:02.3]} 25... a5 {[%clk 0:00:22.4]} 26. Rg4 {[%clk 0:00:59.8]}
26... Nc4 {[%clk 0:00:15.6]} 27. Nxc4 {[%clk 0:00:57.3]} 27... bxc4 {[%clk
0:00:16.5]} 28. Rxg7 {[%clk 0:00:32]} 28... Nd3 {[%clk 0:00:10.6]} 29. Rb1
{[%clk 0:00:29.7]} 29... Nxe5 {[%clk 0:00:09.7]} 30. Rb7 {[%clk 0:00:29.8]}
30... Kf8 {[%clk 0:00:09]} 31. Rg3 {[%clk 0:00:29.6]} 31... Re8 {[%clk 0:00:08]}
32. Kd2 {[%clk 0:00:26.7]} 32... Rg8 {[%clk 0:00:05.5]} 33. Rxg8+ {[%clk
0:00:26.5]} 33... Kxg8 {[%clk 0:00:06.4]} 34. Rc7 {[%clk 0:00:25.5]} 34... Re6
{[%clk 0:00:04.9]} 35. Ne2 {[%clk 0:00:23.9]} 35... Rg6 {[%clk 0:00:04.2]} 36.
Bh1 {[%clk 0:00:20.7]} 36... Nd3 {[%clk 0:00:03.1]} 37. Nd4 {[%clk 0:00:18.3]}
37... Rg1 {[%clk 0:00:03.1]} 38. Bf3 {[%clk 0:00:18.5]} 38... Rf1 {[%clk
0:00:02.6]} 39. Be2 {[%clk 0:00:18]} 39... Ra1 {[%clk 0:00:02.5]} 40. Bxd3
{[%clk 0:00:17.5]} 40... cxd3 {[%clk 0:00:02]} 41. Kxd3 {[%clk 0:00:18]} 41...
Rxa2 {[%clk 0:00:02.9]} 42. h4 {[%clk 0:00:15.3]} 42... Rh2 {[%clk 0:00:02.8]}
43. Nf5 {[%clk 0:00:15.5]} 43... Rh3+ {[%clk 0:00:02.4]} 44. Kd4 {[%clk
0:00:15.6]} 44... a4 {[%clk 0:00:02.9]} 45. Ke5 {[%clk 0:00:15.5]} 45... a3
{[%clk 0:00:03.2]} 46. Kf6 {[%clk 0:00:15.5]} 46... Kh7 {[%clk 0:00:04.1]} 47.
Rxf7+ {[%clk 0:00:15.2]} 47... Kh8 {[%clk 0:00:04.8]} 48. Kg6 {[%clk 0:00:11.6]}
48... Kg8 {[%clk 0:00:05.1]} 49. Ne7+ {[%clk 0:00:11.2]} 1-0

[Event "Early-Titled-Tuesday-Blitz-April-23-2024"]
[Site "Chess.com"]
[Date "2024.04.23"]
[Round "7"]
[White "kids2010"]
[Black "DominguezOnYoutube"]
[Result "0-1"]
[WhiteElo "2789"]
[BlackElo "2952"]
[TimeControl "180+1"]
[EndTime "9:20:33 PDT"]
[Termination "DominguezOnYoutube won by resignation"]

1. e4 {[%clk 0:03:00.9]} 1... c5 {[%clk 0:02:59.1]} 2. Nc3 {[%clk 0:03:00.8]}
2... d6 {[%clk 0:02:58.9]} 3. d4 {[%clk 0:02:54.3]} 3... cxd4 {[%clk 0:02:58.5]}
4. Qxd4 {[%clk 0:02:55.2]} 4... Nc6 {[%clk 0:02:58.3]} 5. Qd2 {[%clk 0:02:55.6]}
5... g6 {[%clk 0:02:58.2]} 6. b3 {[%clk 0:02:56.2]} 6... Bh6 {[%clk 0:02:57.3]}
7. f4 {[%clk 0:02:56.6]} 7... Nf6 {[%clk 0:02:57.7]} 8. Bb2 {[%clk 0:02:56.1]}
8... O-O {[%clk 0:02:57.2]} 9. O-O-O {[%clk 0:02:55.9]} 9... e5 {[%clk
0:02:57.7]} 10. g3 {[%clk 0:02:56.2]} 10... Re8 {[%clk 0:02:57.5]} 11. Bg2
{[%clk 0:02:55.1]} 11... Bg4 {[%clk 0:02:52.5]} 12. Nge2 {[%clk 0:02:43.5]}
12... exf4 {[%clk 0:02:51.4]} 13. gxf4 {[%clk 0:02:43.2]} 13... Bxe2 {[%clk
0:02:50.4]} 14. Nxe2 {[%clk 0:02:42.8]} 14... Nxe4 {[%clk 0:02:49.8]} 15. Bxe4
{[%clk 0:02:38]} 15... Rxe4 {[%clk 0:02:50.7]} 16. Kb1 {[%clk 0:02:05.9]} 16...
Qa5 {[%clk 0:02:48.5]} 17. Qxa5 {[%clk 0:01:51.4]} 17... Nxa5 {[%clk 0:02:48]}
18. Nc3 {[%clk 0:01:52.3]} 18... Rxf4 {[%clk 0:01:56]} 19. Nd5 {[%clk
0:01:49.4]} 19... Rf3 {[%clk 0:01:56.3]} 20. Nf6+ {[%clk 0:01:44.9]} 20... Kh8
{[%clk 0:01:54.6]} 21. Rxd6 {[%clk 0:01:23]} 21... Bg7 {[%clk 0:01:46.4]} 22.
Rhd1 {[%clk 0:01:13]} 22... Nc6 {[%clk 0:01:45]} 23. b4 {[%clk 0:01:04.4]} 23...
Rf5 {[%clk 0:01:20.7]} 24. a4 {[%clk 0:00:58.6]} 24... Rf8 {[%clk 0:00:41.4]}
25. b5 {[%clk 0:00:49.9]} 25... Ne5 {[%clk 0:00:39.7]} 26. Bxe5 {[%clk
0:00:49.9]} 26... Rxe5 {[%clk 0:00:39]} 27. Nd7 {[%clk 0:00:50.7]} 27... Re4
{[%clk 0:00:37.2]} 28. Nxf8 {[%clk 0:00:47.9]} 28... Bxf8 {[%clk 0:00:37.8]} 29.
R6d4 {[%clk 0:00:40.5]} 29... Re2 {[%clk 0:00:30.6]} 30. Rd7 {[%clk 0:00:40.4]}
30... Rf2 {[%clk 0:00:25.4]} 31. Rxb7 {[%clk 0:00:39]} 31... Bc5 {[%clk
0:00:26]} 32. a5 {[%clk 0:00:38]} 32... Rf4 {[%clk 0:00:25.4]} 33. b6 {[%clk
0:00:24.7]} 33... Rb4+ {[%clk 0:00:17.9]} 34. Kc1 {[%clk 0:00:24.9]} 34... Be3+
{[%clk 0:00:17.6]} 35. Rd2 {[%clk 0:00:22.3]} 35... axb6 {[%clk 0:00:12.6]} 36.
a6 {[%clk 0:00:10.1]} 36... Kg7 {[%clk 0:00:10.8]} 37. a7 {[%clk 0:00:09.7]}
37... Ra4 {[%clk 0:00:10.8]} 38. Kd1 {[%clk 0:00:06.2]} 38... Bxd2 {[%clk
0:00:10.7]} 39. Kxd2 {[%clk 0:00:07.1]} 39... g5 {[%clk 0:00:09.4]} 40. c4
{[%clk 0:00:05.8]} 40... g4 {[%clk 0:00:09]} 41. Kc3 {[%clk 0:00:06.2]} 41... h5
{[%clk 0:00:08.5]} 42. Kb3 {[%clk 0:00:06.8]} 42... Ra5 {[%clk 0:00:08]} 43. Kb4
{[%clk 0:00:06.7]} 43... Ra1 {[%clk 0:00:07.8]} 44. Kb5 {[%clk 0:00:07]} 44...
h4 {[%clk 0:00:07.5]} 45. Kxb6 {[%clk 0:00:04.3]} 45... g3 {[%clk 0:00:07.4]}
46. hxg3 {[%clk 0:00:05.2]} 46... hxg3 {[%clk 0:00:07.9]} 47. Rd7 {[%clk
0:00:02.1]} 47... g2 {[%clk 0:00:07.4]} 48. Rd1 {[%clk 0:00:01.9]} 48... Rxd1
{[%clk 0:00:06.5]} 49. a8=Q {[%clk 0:00:02.7]} 49... g1=Q+ {[%clk 0:00:06.6]}
50. c5 {[%clk 0:00:03.4]} 50... Rb1+ {[%clk 0:00:06.1]} 51. Kc6 {[%clk
0:00:03.8]} 51... Qg2+ {[%clk 0:00:06.2]} 0-1

[Event "Early-Titled-Tuesday-Blitz-April-23-2024"]
[Site "Chess.com"]
[Date "2024.04.23"]
[Round "7"]
[White "HajiyevKanan"]
[Black "kuchma777"]
[Result "1-0"]
[WhiteElo "2622"]
[BlackElo "2475"]
[TimeControl "180+1"]
[EndTime "9:20:33 PDT"]
[Termination "HajiyevKanan won on time"]

1. d4 {[%clk 0:03:00.9]} 1... Nf6 {[%clk 0:02:59.9]} 2. Nf3 {[%clk 0:03:01.8]}
2... e6 {[%clk 0:03:00]} 3. c4 {[%clk 0:03:02.2]} 3... d5 {[%clk 0:02:58.6]} 4.
Nc3 {[%clk 0:03:02.3]} 4... Bb4 {[%clk 0:02:58.2]} 5. Qa4+ {[%clk 0:03:01.3]}
5... Nc6 {[%clk 0:02:58]} 6. e3 {[%clk 0:03:02]} 6... O-O {[%clk 0:02:53.5]} 7.
Bd3 {[%clk 0:03:01.9]} 7... Bd7 {[%clk 0:02:31]} 8. Qb3 {[%clk 0:02:59.5]} 8...
Ne4 {[%clk 0:02:04.7]} 9. O-O {[%clk 0:02:54.6]} 9... Bxc3 {[%clk 0:02:01.2]}
10. bxc3 {[%clk 0:02:55.2]} 10... Na5 {[%clk 0:02:01.1]} 11. Qc2 {[%clk
0:02:51.3]} 11... f5 {[%clk 0:01:53.8]} 12. cxd5 {[%clk 0:02:50]} 12... exd5
{[%clk 0:01:54.7]} 13. Ne5 {[%clk 0:02:48.5]} 13... Nc6 {[%clk 0:01:50]} 14.
Nxc6 {[%clk 0:02:29]} 14... Bxc6 {[%clk 0:01:46.5]} 15. Ba3 {[%clk 0:02:27.9]}
15... Rf6 {[%clk 0:01:45.3]} 16. f3 {[%clk 0:02:25.3]} 16... Nd6 {[%clk
0:01:45.5]} 17. Bxd6 {[%clk 0:02:25]} 17... Qxd6 {[%clk 0:01:27.6]} 18. Bxf5
{[%clk 0:02:25.2]} 18... Rh6 {[%clk 0:01:19.2]} 19. h3 {[%clk 0:02:25.6]} 19...
Rf8 {[%clk 0:01:17.7]} 20. e4 {[%clk 0:02:14.3]} 20... Qg3 {[%clk 0:00:58.6]}
21. Qf2 {[%clk 0:02:02.1]} 21... Qf4 {[%clk 0:00:55.9]} 22. Rae1 {[%clk
0:01:40.9]} 22... Rhf6 {[%clk 0:00:44.6]} 23. g3 {[%clk 0:01:32.3]} 23... Qh6
{[%clk 0:00:38]} 24. Qe3 {[%clk 0:01:01.1]} 24... Qh5 {[%clk 0:00:31.3]} 25. Bg4
{[%clk 0:00:59.3]} 25... Qg6 {[%clk 0:00:30.6]} 26. e5 {[%clk 0:00:56.9]} 26...
R6f7 {[%clk 0:00:25.4]} 27. e6 {[%clk 0:00:54]} 27... Re7 {[%clk 0:00:24.6]} 28.
f4 {[%clk 0:00:51.6]} 28... h5 {[%clk 0:00:18.9]} 29. f5 {[%clk 0:00:52.1]}
29... Qh7 {[%clk 0:00:18.5]} 30. Qg5 {[%clk 0:00:44.6]} 30... hxg4 {[%clk
0:00:15.5]} 31. Qxe7 {[%clk 0:00:44.7]} 31... Qxh3 {[%clk 0:00:15.9]} 32. Qh4
{[%clk 0:00:42.8]} 32... Bb5 {[%clk 0:00:08.5]} 33. Qxh3 {[%clk 0:00:39.2]}
33... gxh3 {[%clk 0:00:09.4]} 34. Rf4 {[%clk 0:00:36]} 34... Bd3 {[%clk
0:00:07.5]} 35. g4 {[%clk 0:00:35.6]} 35... Re8 {[%clk 0:00:05.2]} 36. Kh2
{[%clk 0:00:31]} 36... Be4 {[%clk 0:00:04.9]} 37. Kxh3 {[%clk 0:00:30.9]} 37...
Kf8 {[%clk 0:00:05.2]} 38. g5 {[%clk 0:00:30]} 38... Ke7 {[%clk 0:00:05.6]} 39.
Kg4 {[%clk 0:00:30.7]} 39... Rh8 {[%clk 0:00:05.5]} 40. c4 {[%clk 0:00:19.5]}
40... c6 {[%clk 0:00:02.6]} 41. cxd5 {[%clk 0:00:19.7]} 41... Bxd5 {[%clk
0:00:03.5]} 42. f6+ {[%clk 0:00:19.7]} 42... gxf6 {[%clk 0:00:01.5]} 43. gxf6+
{[%clk 0:00:20.6]} 43... Kd6 {[%clk 0:00:01.9]} 44. e7 {[%clk 0:00:20.8]} 44...
Bf7 {[%clk 0:00:02.3]} 45. Rf5 {[%clk 0:00:15.4]} 45... Kd7 {[%clk 0:00:01.5]}
46. Rg5 {[%clk 0:00:13.1]} 46... Rh6 {[%clk 0:00:01.2]} 47. Rf5 {[%clk
0:00:11.9]} 47... Rh8 {[%clk 0:00:01.4]} 48. Kg5 {[%clk 0:00:12]} 48... Rg8+
{[%clk 0:00:01.6]} 49. Kh6 {[%clk 0:00:10.9]} 49... Rg7 {[%clk 0:00:01.9]} 50.
Kxg7 {[%clk 0:00:10.9]} 1-0

[Event "Early-Titled-Tuesday-Blitz-April-23-2024"]
[Site "Chess.com"]
[Date "2024.04.23"]
[Round "7"]
[White "average_trans"]
[Black "Raskolnikov6"]
[Result "0-1"]
[WhiteElo "2204"]
[BlackElo "2393"]
[TimeControl "180+1"]
[EndTime "9:20:33 PDT"]
[Termination "Raskolnikov6 won by checkmate"]

1. d4 {[%clk 0:03:00.9]} 1... Nf6 {[%clk 0:02:59.7]} 2. Bf4 {[%clk 0:02:58.3]}
2... g6 {[%clk 0:02:59.7]} 3. e3 {[%clk 0:02:58.8]} 3... Bg7 {[%clk 0:03:00.4]}
4. c4 {[%clk 0:02:59.7]} 4... O-O {[%clk 0:03:00.7]} 5. h3 {[%clk 0:02:59.3]}
5... d6 {[%clk 0:03:01.2]} 6. Nc3 {[%clk 0:02:59.5]} 6... Nbd7 {[%clk
0:03:00.3]} 7. Nf3 {[%clk 0:02:58.2]} 7... Re8 {[%clk 0:02:56.7]} 8. Bh2 {[%clk
0:02:57.2]} 8... b6 {[%clk 0:02:56.4]} 9. Bd3 {[%clk 0:02:55.9]} 9... Bb7 {[%clk
0:02:56.3]} 10. Qe2 {[%clk 0:02:55.7]} 10... e5 {[%clk 0:02:56]} 11. dxe5 {[%clk
0:02:54.3]} 11... dxe5 {[%clk 0:02:55.9]} 12. e4 {[%clk 0:02:48.6]} 12... Nh5
{[%clk 0:02:37.5]} 13. O-O-O {[%clk 0:02:27.6]} 13... Nf4 {[%clk 0:02:35.8]} 14.
Qf1 {[%clk 0:02:24.1]} 14... Qe7 {[%clk 0:02:10.4]} 15. g3 {[%clk 0:02:12.5]}
15... Nxd3+ {[%clk 0:02:04.1]} 16. Qxd3 {[%clk 0:02:12.3]} 16... Nc5 {[%clk
0:02:04.6]} 17. Qc2 {[%clk 0:02:12.1]} 17... c6 {[%clk 0:02:00.6]} 18. Ne1
{[%clk 0:02:07.8]} 18... Ne6 {[%clk 0:01:59.1]} 19. Ne2 {[%clk 0:02:01.2]} 19...
Nd4 {[%clk 0:01:50]} 20. Nxd4 {[%clk 0:02:00.6]} 20... exd4 {[%clk 0:01:50.9]}
21. Nd3 {[%clk 0:01:45.3]} 21... Qxe4 {[%clk 0:01:48.9]} 22. f4 {[%clk
0:01:35.1]} 22... c5 {[%clk 0:01:46.6]} 23. Rhe1 {[%clk 0:01:34]} 23... Qg2
{[%clk 0:01:37.8]} 24. Ne5 {[%clk 0:01:07.2]} 24... Qxh3 {[%clk 0:01:34.5]} 25.
g4 {[%clk 0:00:59.8]} 25... Bxe5 {[%clk 0:01:29.8]} 26. fxe5 {[%clk 0:00:56.5]}
26... Qxg4 {[%clk 0:01:29]} 27. Qd2 {[%clk 0:00:38]} 27... Qe6 {[%clk
0:01:22.6]} 28. Rf1 {[%clk 0:00:35.9]} 28... Qxc4+ {[%clk 0:01:22.2]} 29. Kb1
{[%clk 0:00:35.5]} 29... Be4+ {[%clk 0:01:22.6]} 30. Ka1 {[%clk 0:00:34.9]}
30... Bd5 {[%clk 0:01:19.8]} 31. b3 {[%clk 0:00:26.9]} 31... Qa6 {[%clk
0:01:13.7]} 32. Kb2 {[%clk 0:00:17.4]} 32... Be6 {[%clk 0:00:50.8]} 33. Qh6
{[%clk 0:00:14.3]} 33... Qe2+ {[%clk 0:00:50.2]} 34. Ka1 {[%clk 0:00:06.5]}
34... Bf5 {[%clk 0:00:21.1]} 35. Bf4 {[%clk 0:00:03.7]} 35... Rxe5 {[%clk
0:00:19.4]} 36. Bxe5 {[%clk 0:00:03.3]} 36... Qxe5 {[%clk 0:00:19.1]} 37. Qd2
{[%clk 0:00:03.2]} 37... d3+ {[%clk 0:00:18.5]} 38. Kb1 {[%clk 0:00:02.8]} 38...
Qd4 {[%clk 0:00:17.5]} 39. Rfe1 {[%clk 0:00:03.2]} 39... Rd8 {[%clk 0:00:16.9]}
40. Re3 {[%clk 0:00:03.6]} 40... b5 {[%clk 0:00:17.2]} 41. Rde1 {[%clk
0:00:04.2]} 41... c4 {[%clk 0:00:16.6]} 42. bxc4 {[%clk 0:00:03.5]} 42... bxc4
{[%clk 0:00:16.6]} 43. Re8+ {[%clk 0:00:04.1]} 43... Rxe8 {[%clk 0:00:17]} 44.
Rxe8+ {[%clk 0:00:04.8]} 44... Kg7 {[%clk 0:00:17.6]} 45. Kc1 {[%clk 0:00:05.1]}
45... c3 {[%clk 0:00:16.1]} 46. Qg5 {[%clk 0:00:05]} 46... d2+ {[%clk 0:00:16]}
47. Kd1 {[%clk 0:00:05.7]} 47... c2+ {[%clk 0:00:15.6]} 48. Ke2 {[%clk 0:00:06]}
48... d1=Q# {[%clk 0:00:15.7]} 0-1

[Event "Early-Titled-Tuesday-Blitz-April-23-2024"]
[Site "Chess.com"]
[Date "2024.04.23"]
[Round "7"]
[White "ViktoriyaTarasova"]
[Black "VirtualCoach"]
[Result "1-0"]
[WhiteElo "2363"]
[BlackElo "2012"]
[TimeControl "180+1"]
[EndTime "9:20:34 PDT"]
[Termination "ViktoriyaTarasova won by checkmate"]

1. d4 {[%clk 0:03:00.9]} 1... Nf6 {[%clk 0:02:59.5]} 2. c4 {[%clk 0:03:00.7]}
2... e6 {[%clk 0:02:59.5]} 3. Nc3 {[%clk 0:03:00.3]} 3... Bb4 {[%clk 0:02:59.3]}
4. e3 {[%clk 0:03:00.8]} 4... d5 {[%clk 0:02:58.9]} 5. cxd5 {[%clk 0:02:58.5]}
5... exd5 {[%clk 0:02:58.7]} 6. Bd3 {[%clk 0:02:59.1]} 6... O-O {[%clk
0:02:58.5]} 7. Ne2 {[%clk 0:02:58.7]} 7... Nbd7 {[%clk 0:02:56.7]} 8. O-O {[%clk
0:02:58.5]} 8... Re8 {[%clk 0:02:57]} 9. Nf4 {[%clk 0:02:58.1]} 9... Nf8 {[%clk
0:02:56]} 10. f3 {[%clk 0:02:57.6]} 10... Ng6 {[%clk 0:02:53.3]} 11. Nce2 {[%clk
0:02:49.7]} 11... Bd6 {[%clk 0:02:50.2]} 12. Nxg6 {[%clk 0:02:37.5]} 12... hxg6
{[%clk 0:02:49.9]} 13. Bd2 {[%clk 0:02:38.1]} 13... c5 {[%clk 0:02:49.6]} 14.
Rc1 {[%clk 0:02:33.4]} 14... Qb6 {[%clk 0:02:46.3]} 15. b3 {[%clk 0:02:25.7]}
15... Bd7 {[%clk 0:02:39.9]} 16. Qe1 {[%clk 0:02:25.5]} 16... a5 {[%clk
0:02:34.9]} 17. Qf2 {[%clk 0:02:07.2]} 17... Rac8 {[%clk 0:02:29.8]} 18. h3
{[%clk 0:02:03.3]} 18... Bb5 {[%clk 0:02:24.2]} 19. Bxb5 {[%clk 0:01:54.8]}
19... Qxb5 {[%clk 0:02:25.1]} 20. Nc3 {[%clk 0:01:53.7]} 20... Qd7 {[%clk
0:02:24.2]} 21. Na4 {[%clk 0:01:48.5]} 21... cxd4 {[%clk 0:02:18.1]} 22. Nb6
{[%clk 0:01:41.6]} 22... dxe3 {[%clk 0:01:32.8]} 23. Bxe3 {[%clk 0:01:39.5]}
23... Rxc1 {[%clk 0:01:24.9]} 24. Nxd7 {[%clk 0:01:35.1]} 24... Rxf1+ {[%clk
0:01:25.8]} 25. Kxf1 {[%clk 0:01:29.4]} 25... Nxd7 {[%clk 0:01:25.5]} 26. Bd4
{[%clk 0:01:25.1]} 26... Bb4 {[%clk 0:01:20.8]} 27. Qc2 {[%clk 0:01:15.1]} 27...
Nc5 {[%clk 0:00:58.2]} 28. Kf2 {[%clk 0:00:57.9]} 28... b6 {[%clk 0:00:43.7]}
29. g4 {[%clk 0:00:50.1]} 29... Rb8 {[%clk 0:00:39.2]} 30. Kg2 {[%clk
0:00:47.3]} 30... Rc8 {[%clk 0:00:39]} 31. Qe2 {[%clk 0:00:43]} 31... Ne6 {[%clk
0:00:36.2]} 32. Bxb6 {[%clk 0:00:39.4]} 32... d4 {[%clk 0:00:34.8]} 33. Qa6
{[%clk 0:00:25.8]} 33... Rc2+ {[%clk 0:00:32.9]} 34. Kf1 {[%clk 0:00:26.5]}
34... Rc1+ {[%clk 0:00:30.1]} 35. Ke2 {[%clk 0:00:26.3]} 35... Rc2+ {[%clk
0:00:29.7]} 36. Kd1 {[%clk 0:00:26.6]} 36... Rd2+ {[%clk 0:00:29.4]} 37. Kc1
{[%clk 0:00:26.9]} 37... d3 {[%clk 0:00:26.9]} 38. Bxa5 {[%clk 0:00:23.6]} 38...
Rc2+ {[%clk 0:00:25.3]} 39. Kd1 {[%clk 0:00:23.8]} 39... Bc5 {[%clk 0:00:17.1]}
40. Bd2 {[%clk 0:00:21]} 40... Nd4 {[%clk 0:00:15.8]} 41. Qxd3 {[%clk
0:00:19.9]} 41... Rxa2 {[%clk 0:00:15]} 42. b4 {[%clk 0:00:19.4]} 42... Ra1+
{[%clk 0:00:14.8]} 43. Bc1 {[%clk 0:00:19.7]} 43... Bb6 {[%clk 0:00:12.2]} 44.
Kd2 {[%clk 0:00:08.8]} 44... Ra2+ {[%clk 0:00:11.3]} 45. Kd1 {[%clk 0:00:09.2]}
45... Ra1 {[%clk 0:00:10.3]} 46. f4 {[%clk 0:00:08.2]} 46... f6 {[%clk
0:00:10.7]} 47. Qxg6 {[%clk 0:00:06.9]} 47... Nb3 {[%clk 0:00:09.2]} 48. Qe8+
{[%clk 0:00:06.7]} 48... Kh7 {[%clk 0:00:09.8]} 49. Qe4+ {[%clk 0:00:07.1]}
49... g6 {[%clk 0:00:09.3]} 50. Qe7+ {[%clk 0:00:07.2]} 50... Kh6 {[%clk
0:00:09.7]} 51. g5+ {[%clk 0:00:06]} 51... Kh5 {[%clk 0:00:09.5]} 52. Qh7#
{[%clk 0:00:05.5]} 1-0

[Event "Early-Titled-Tuesday-Blitz-April-23-2024"]
[Site "Chess.com"]
[Date "2024.04.23"]
[Round "7"]
[White "Polish_fighter3000"]
[Black "Shtembuliak"]
[Result "1/2-1/2"]
[WhiteElo "3104"]
[BlackElo "2888"]
[TimeControl "180+1"]
[EndTime "9:20:36 PDT"]
[Termination "Game drawn by repetition"]

1. e4 {[%clk 0:03:00.9]} 1... e6 {[%clk 0:03:00.4]} 2. d4 {[%clk 0:02:59]} 2...
d5 {[%clk 0:03:01]} 3. Nc3 {[%clk 0:02:58.1]} 3... Nc6 {[%clk 0:03:00.8]} 4. e5
{[%clk 0:02:56]} 4... f6 {[%clk 0:02:53.3]} 5. Bb5 {[%clk 0:02:52.2]} 5... Bd7
{[%clk 0:02:50.7]} 6. Nf3 {[%clk 0:02:42.2]} 6... a6 {[%clk 0:02:49.9]} 7. Bxc6
{[%clk 0:02:38.7]} 7... Bxc6 {[%clk 0:02:50.8]} 8. O-O {[%clk 0:02:36.5]} 8...
Qd7 {[%clk 0:02:51.3]} 9. a4 {[%clk 0:02:32.6]} 9... Ne7 {[%clk 0:02:48.5]} 10.
b3 {[%clk 0:02:26.2]} 10... Ng6 {[%clk 0:02:47]} 11. Re1 {[%clk 0:02:22.7]}
11... fxe5 {[%clk 0:02:43.2]} 12. Nxe5 {[%clk 0:02:20.5]} 12... Nxe5 {[%clk
0:02:43.3]} 13. Rxe5 {[%clk 0:02:20.2]} 13... Bd6 {[%clk 0:02:43.9]} 14. Qh5+
{[%clk 0:01:48.4]} 14... g6 {[%clk 0:02:43.5]} 15. Qe2 {[%clk 0:01:49]} 15...
Bxe5 {[%clk 0:02:35.2]} 16. Qxe5 {[%clk 0:01:49.9]} 16... O-O {[%clk 0:02:35.5]}
17. Bf4 {[%clk 0:01:47.9]} 17... Rf5 {[%clk 0:02:32.5]} 18. Qe3 {[%clk
0:01:47.7]} 18... Raf8 {[%clk 0:02:10.1]} 19. Ne2 {[%clk 0:01:47.7]} 19... e5
{[%clk 0:01:58.7]} 20. Bg3 {[%clk 0:01:47.2]} 20... e4 {[%clk 0:01:49.4]} 21. c4
{[%clk 0:01:39.1]} 21... Qf7 {[%clk 0:01:47.1]} 22. c5 {[%clk 0:01:33]} 22... g5
{[%clk 0:01:41.7]} 23. Rf1 {[%clk 0:01:11.8]} 23... Be8 {[%clk 0:01:30.2]} 24.
Nc3 {[%clk 0:00:27.8]} 24... Qe7 {[%clk 0:01:17.5]} 25. b4 {[%clk 0:00:13.2]}
25... Bf7 {[%clk 0:00:45.1]} 26. h3 {[%clk 0:00:09.6]} 26... h6 {[%clk
0:00:39.7]} 27. Ra1 {[%clk 0:00:06.7]} 27... Be6 {[%clk 0:00:32.8]} 28. b5
{[%clk 0:00:06.1]} 28... Ra8 {[%clk 0:00:33.5]} 29. bxa6 {[%clk 0:00:04]} 29...
Rxa6 {[%clk 0:00:32.8]} 30. Rb1 {[%clk 0:00:04.6]} 30... c6 {[%clk 0:00:33.2]}
31. Qe2 {[%clk 0:00:03.8]} 31... Qf7 {[%clk 0:00:31.3]} 32. Rb3 {[%clk
0:00:03.5]} 32... Ra8 {[%clk 0:00:29.2]} 33. Rb4 {[%clk 0:00:03.4]} 33... Re8
{[%clk 0:00:27.6]} 34. Nd1 {[%clk 0:00:03.7]} 34... h5 {[%clk 0:00:16.2]} 35.
Ne3 {[%clk 0:00:03.2]} 35... Rf4 {[%clk 0:00:14.4]} 36. a5 {[%clk 0:00:02.2]}
36... Bc8 {[%clk 0:00:13.6]} 37. Nf1 {[%clk 0:00:02]} 37... h4 {[%clk
0:00:10.4]} 38. Bxf4 {[%clk 0:00:02]} 38... gxf4 {[%clk 0:00:11.3]} 39. Nh2
{[%clk 0:00:01.9]} 39... f3 {[%clk 0:00:10.2]} 40. gxf3 {[%clk 0:00:02.5]} 40...
Bxh3 {[%clk 0:00:10.4]} 41. Ng4 {[%clk 0:00:01.4]} 41... Kg7 {[%clk 0:00:03.3]}
42. Kh2 {[%clk 0:00:01.3]} 42... Bxg4 {[%clk 0:00:03.2]} 43. fxg4 {[%clk
0:00:02.2]} 43... Qf4+ {[%clk 0:00:03.6]} 44. Kh3 {[%clk 0:00:02.6]} 44... Qc1
{[%clk 0:00:03.6]} 45. Rxb7+ {[%clk 0:00:02.5]} 45... Kg6 {[%clk 0:00:03.4]} 46.
Kg2 {[%clk 0:00:02.6]} 46... h3+ {[%clk 0:00:03]} 47. Kh2 {[%clk 0:00:03.2]}
47... Qf4+ {[%clk 0:00:02.7]} 48. Kh1 {[%clk 0:00:03.8]} 48... Qc1+ {[%clk
0:00:02.6]} 49. Kh2 {[%clk 0:00:04.5]} 49... Qf4+ {[%clk 0:00:03.1]} 50. Kh1
{[%clk 0:00:04.8]} 50... Qc1+ {[%clk 0:00:03.5]} 51. Kh2 {[%clk 0:00:05.2]}
1/2-1/2